Cogmind - Beta 13 @@@ ROGUE MODE // 2024.04.10 @ 23:57:42 Player: Zedx Result: Destroyed by G-47 Trooper with Particle Gun Performance ------------- Evolutions (2) 1000 Regions Visited (3) 600 Robots Destroyed (11) 55 Value Destroyed (434) 434 Prototype IDs (0) 0 Alien Tech Used (0) 0 Bonus (0) 0 TOTAL SCORE: 2089 Bonus ------- None Cogmind --------- Core Integrity 0/550 Matter 300/300 Energy 100/100 System Corruption 0% Temperature Cool (9) Movement Core (350) Ox6 Location -8/Materials Parts ------- > --- POWER (2) -------- (None) > --- PROPULSION (3) --- (None) > --- UTILITY (3) ------ Large Storage Unit > --- WEAPON (3) ------- (None) > --- INVENTORY (15) --- (None) Peak State ------------ > --- POWER ------------ Ion Engine Light Nuclear Core > --- PROPULSION ------- Aluminum Leg Aluminum Leg Aluminum Leg > --- UTILITY ---------- Large Storage Unit Structural Scanner > --- WEAPON ----------- Medium Laser Ion Cannon Light Assault Rifle > --- INVENTORY -------- Light Ion Engine Aluminum Leg Aluminum Leg Heat Sink [Rating: 14] Favorites ----------- Power Ion Engine Engine Ion Engine Power Core Light Nuclear Core Propulsion Aluminum Leg Leg Aluminum Leg Utility Large Storage Unit Device Heat Sink Storage Large Storage Unit Hackware Hacking Suite Weapon Light Assault Rifle Energy Gun Medium Laser Energy Cannon Ion Cannon Ballistic Gun Light Assault Rifle Special Melee Weapon Datajack Build | -11 -10 -9 -8 ------- Run | Yrd Mat Mat Mat Slots Evolved 4 | . . 2 2 Power 1 | . . 1 . Propulsion 1 | . . . 1 Utility 1 | . . . 1 Weapon 1 | . . 1 . Parts Attached 34 | 7 9 8 10 Power 4 | 1 . 1 2 Engine 2 | 1 . . 1 Core 2 | . . 1 1 Reactor . | . . . . Propulsion 8 | 2 . 1 5 Treads . | . . . . Leg 8 | 2 . 1 5 Wheel . | . . . . Hover . | . . . . Flight . | . . . . Utility 11 | 1 7 2 1 Device 6 | . 3 2 1 Storage 4 | 1 3 . . Processor . | . . . . Hackware 1 | . 1 . . Protection . | . . . . Artifact . | . . . . Weapon 11 | 3 2 4 2 Energy Gun 3 | 2 . 1 . Energy Cannon 2 | . . 1 1 Ballistic Gun 4 | 1 1 1 1 Ballistic Cannon . | . . . . Launcher . | . . . . Special Weapon . | . . . . Impact Weapon . | . . . . Slashing Weapon . | . . . . Piercing Weapon . | . . . . Special Melee Weapon 2 | . 1 1 . Unidentified Prototypes . | . . . . Parts Lost 22 | . 1 3 18 Power 4 | . . . 4 Propulsion 8 | . . 1 7 Utility 2 | . . . 2 Weapon 8 | . 1 2 5 Highest Loss Streak 17 | . 1 2 17 To Critical Strikes 1 | . . 1 . Average Slot Usage (%) 87 | . 90 96 72 Engine 11 | . 14 11 6 Core 4 | . . 11 7 Leg 24 | . 28 22 20 Device 6 | . 4 10 7 Storage 11 | . 13 11 9 Hackware 1 | . 3 . . Energy Gun 3 | . . 4 7 Energy Cannon 3 | . . 4 7 Ballistic Gun 17 | . 23 16 7 Special Melee Weapon 2 | . 1 4 . Naked Turns . | . . . . Heaviest Build 40 | 13 27 40 40 Greatest Support 30 | 20 20 20 30 Greatest Overweight (x) 8 | . 1 1 8 Average Overweight (x) . | . . 1 1 Largest Inventory Capacity 15 | 8 15 15 15 Average Capacity 12 | 6 10 15 15 Most Carried 9 | 5 9 8 7 Average Carried 5 | 1 6 6 5 Final Capacity 15 | 8 15 15 15 Final Carried 9 | 1 9 6 . Class Distribution -------------------- 74% | Mutant 14% | Skirmisher 8% | Scavenger-Skirmisher Dominant Class ---------------- Mutant | -10/Materials Mutant | -9/Materials Scavenger-Skirmisher | -8/Materials Resources | -11 -10 -9 -8 ----------- Run | Yrd Mat Mat Mat Matter Collected 577 | 197 140 117 123 Remotely . | . . . . Salvage Created 507 | . 197 157 153 Parts 30 | . 16 9 5 Haulers Intercepted . | . . . . Recyclers Shooed . | . . . . Parts Field Recycled . | . . . . Retrieved Matter . | . . . . Parts Self-Destructed . | . . . . Prevented . | . . . . Kills | -11 -10 -9 -8 ------- Run | Yrd Mat Mat Mat Combat Hostiles Destroyed 10 | . 4 3 3 Guns 7 | . 4 3 . Cannons 2 | . . . 2 Classes Destroyed 4 | . 2 2 . Operator 1 | . 1 . . Grunt 8 | . 4 1 3 Brawler 1 | . . 1 . Sentry 1 | . . 1 . Best Kill Streak 2 | . 2 2 1 Combat Bots Only 2 | . 2 2 1 Max Kills in Single Turn 1 | . 1 1 1 Gunslinging . | . . . . Exploded . | . . . . Melee . | . . . . Uniques/NPCs Destroyed . | . . . . Combat | -11 -10 -9 -8 -------- Run | Yrd Mat Mat Mat Hostile Shots Fired 211 | . 34 27 150 Missed 53 | . 6 9 38 Damage Taken 2472 | . 377 288 1807 Core 754 | . 104 93 557 Absorbed by Shields . | . . . . Core Remaining (%) 78 | 100 58 76 . Volleys Fired 55 | . 23 15 17 Largest 3 | . 2 3 2 Hottest 130 | . 70 130 80 Shots Fired 97 | . 35 31 31 Gun 75 | . 35 25 15 Cannon 22 | . . 6 16 Launcher . | . . . . Special . | . . . . Kinetic 63 | . 32 17 14 Thermal 34 | . 3 14 17 Explosive . | . . . . Electromagnetic . | . . . . Robot Hit Streak 13 | . 13 7 8 Robot Miss Streak 5 | . 3 5 3 Penetration Max . | . . . . Secondary Targets . | . . . . Shots Hit Robots 68 | . 32 17 19 Core Hits 30 | . 14 7 9 Critical Kills 1 | . . . 1 Critical Parts Destroyed . | . . . . Critical Strikes 1 | . . . 1 Meltdown 1 | . . . 1 Melee Attacks 6 | . 6 . . Impact . | . . . . Slashing . | . . . . Piercing . | . . . . Sneak Attacks . | . . . . Combat Hostiles . | . . . . Follow-up Attacks . | . . . . Damage Inflicted 771 | . 240 187 344 Guns 489 | . 240 165 84 Cannons 278 | . . 22 256 Explosions . | . . . . Melee . | . . . . Ramming 4 | . . . 4 Kinetic 376 | . 215 89 72 Thermal 391 | . 25 98 268 Explosive . | . . . . Electromagnetic . | . . . . Impact . | . . . . Slashing . | . . . . Piercing . | . . . . Highest Corruption 5 | . . 5 . Average Corruption 5 | . . 5 . Corruption Purged . | . . . . Corruption Blocked . | . . . . Effects 4 | . . 4 . Matter Fused 1 | . . 1 . Heat Flow Errors 1 | . . 1 . Energy Discharges 1 | . . 1 . Data Loss (minor) 1 | . . 1 . Overload Shots . | . . . . Overflow Damage . | . . . . Projectiles . | . . . . Explosions . | . . . . Melee . | . . . . Knockbacks . | . . . . Impact . | . . . . Kinetic . | . . . . Secondary . | . . . . Self-Inflicted Damage . | . . . . Shots . | . . . . Rammed 1 | . . . 1 Targets Rammed 2 | . . . 2 Kicked 1 | . . . 1 Crushed . | . . . . Highest Temperature 477 | . 40 477 277 Average Temperature 144 | . 14 231 103 Received Heat Transfer 1386 | . 228 69 1089 Effects 8 | . . 6 2 Shutdowns 3 | . . 3 . Energy Bleed 4 | . . 2 2 Matter Decay 1 | . . 1 . Siege Activations . | . . . . Robots Corrupted . | . . . . Combat Hostiles . | . . . . Parts Fried . | . . . . Impact Corruptions . | . . . . Robots Melted 1 | . . . 1 Combat Hostiles 1 | . . . 1 Parts Melted 2 | . . 1 1 Heat Transferred 777 | . 74 259 444 Parts Sabotaged . | . . . . Parts Stolen . | . . . . Parts Stripped . | . . . . Power Chain Reactions . | . . . . Alert | -11 -10 -9 -8 ------- Run | Yrd Mat Mat Mat Peak Influence 116 | . 116 102 87 Initial 42 | . . . 42 Average 48 | . 67 36 51 Maximum Alert Level . | . . . . Low Security (%) 100 | 100 100 100 100 Level 1 . | . . . . Level 2 . | . . . . Level 3 . | . . . . Level 4 . | . . . . Level 5 . | . . . . High Security . | . . . . Max Security . | . . . . Squads Dispatched 3 | . 1 . 2 Investigation 1 | . . . 1 Extermination . | . . . . Reinforcement 2 | . 1 . 1 Assault . | . . . . Garrison . | . . . . Intercept . | . . . . Searches Triggered . | . . . . Construction Impeded . | . . . . Haulers Reinforced . | . . . . Active Scanning Responses . | . . . . Cargo Convoy Interrupts . | . . . . Stealth | -11 -10 -9 -8 --------- Run | Yrd Mat Mat Mat Distress Signals 1 | . . 1 . Communications Jammed . | . . . . Distress Signals . | . . . . Times Spotted 29 | . 7 8 14 Peak Tracking Total 8 | . 3 4 8 Tactical Retreats 1 | . . . 1 Traps | -11 -10 -9 -8 ------- Run | Yrd Mat Mat Mat Traps Triggered 2 | . . 1 1 Indirectly . | . . . . Trap Hack Attempts . | . . . . Triggered . | . . . . Disarmed . | . . . . Reprogrammed . | . . . . Reused . | . . . . Traps Extracted . | . . . . Installed . | . . . . Triggered . | . . . . Machines | -11 -10 -9 -8 ---------- Run | Yrd Mat Mat Mat Machines Disabled . | . . . . Max in Single Turn . | . . . . Machines Repaired . | . . . . Machines Dismantled . | . . . . Machines Sabotaged . | . . . . Overloaded Fab Kills . | . . . . Hacking | -11 -10 -9 -8 --------- Run | Yrd Mat Mat Mat Machines Accessed 4 | . 1 3 . Terminals 1 | . . 1 . Fabricators . | . . . . Repair Stations 1 | . . 1 . Recycling Units 1 | . 1 . . Scanalyzers 1 | . . 1 . Garrison Access . | . . . . Total Hacks 9 | . 3 6 . Successful 5 | . 3 2 . Failed 4 | . . 4 . Catastrophic 2 | . . 2 . Database Lockouts . | . . . . Manual 2 | . . 2 . Terminals 2 | . . 2 . Fabricators . | . . . . Repair Stations 2 | . . 2 . Recycling Units 3 | . 3 . . Scanalyzers 2 | . . 2 . Garrison Access . | . . . . Terminal Hacks . | . . . . Fabricator Hacks . | . . . . Repair Station Hacks . | . . . . Recycling Unit Hacks 3 | . 3 . . Recycle Component 2 | . 2 . . Retrieve Components 1 | . 1 . . Scanalyzer 2 | . . 2 . Insert Component 1 | . . 1 . Analyze 1 | . . 1 . Garrison Access Hacks . | . . . . Unauthorized Hacks . | . . . . Terminals . | . . . . Fabricators . | . . . . Repair Stations . | . . . . Recycling Units . | . . . . Scanalyzers . | . . . . Garrison Access . | . . . . Data Cores Recovered . | . . . . Used . | . . . . Hacking Detections 3 | . 1 2 . Full Trace Events . | . . . . Feedback Events . | . . . . Feedback Blocked . | . . . . Robot Schematics Acquired . | . . . . Robots Built . | . . . . Authchips . | . . . . Time . | . . . . Total Robot Build Rating . | . . . . Part Schematics Acquired 1 | . . 1 . Parts Built . | . . . . Authchips . | . . . . Time . | . . . . Total Part Build Rating . | . . . . Parts Repaired . | . . . . Time . | . . . . Parts Recycled 2 | . 2 . . Recycled Matter . | . . . . Retrieved Matter . | . . . . Retrieved Components 10 | . 10 . . Parts Scanalyzed 1 | . . 1 . Part Schematics Acquired 1 | . . 1 . Parts Damaged . | . . . . Bothacking | -11 -10 -9 -8 ------------ Run | Yrd Mat Mat Mat Used RIF Installer . | . . . . Robots Hacked 1 | . 1 . . Non-combat . | . . . . Combat 1 | . 1 . . Robot Hacks Applied 2 | . 2 . . parse_system 2 | . 2 . . Relay Couplers Released . | . . . . Fabnet Peak Effective % . | . . . . Robots Rewired . | . . . . Allies Hacked . | . . . . Hacks Repelled . | . . . . Allies | -11 -10 -9 -8 -------- Run | Yrd Mat Mat Mat Total Allies . | . . . . Largest Group . | . . . . Highest-Rated Group . | . . . . Highest-Rated Ally . | . . . . Total Orders . | . . . . Ally Attacks . | . . . . Total Damage . | . . . . Kills . | . . . . Allies Corrupted . | . . . . Allies Melted . | . . . . Intel | -11 -10 -9 -8 ------- Run | Yrd Mat Mat Mat Robot Analysis Total . | . . . . Derelict Logs Recovered . | . . . . Drone Launches . | . . . . Drone Recoveries . | . . . . Exploration | -11 -10 -9 -8 ------------- Run | Yrd Mat Mat Mat Turns Passed 1042 | 106 434 278 224 Spaces Moved 501 | 81 223 117 80 Core 16 | 11 . . 5 Treads . | . . . . Legs 485 | 70 223 117 75 Wheels . | . . . . Hover . | . . . . Flight . | . . . . Fastest Speed 50 | 50 120 190 120 Average Speed 157 | 110 142 190 200 Slowest Speed 450 | 120 190 190 450 Overloaded Moves . | . . . . Propulsion Burnouts . | . . . . Robots Hopped . | . . . . Cave-ins Triggered . | . . . . Exploration Rate (%) 16 | 6 34 15 10 Regions Visited 3 Branch Regions . Pre-discovered Areas . | . . . . Known Exits Taken . | . . . . Unknown Exits Taken 3 | 1 1 1 . Scrap Searched . | . . . . Spaces Dug . | . . . . Terrain Destroyed 3 | . . 2 1 Melee . | . . . . Projectile 3 | . . 2 1 AOE . | . . . . Terrain Rammed . | . . . . Walls Destroyed . | . . . . Machines Disabled . | . . . . Actions | -11 -10 -9 -8 --------- Run | Yrd Mat Mat Mat Total 671 | 98 309 151 113 Wait 32 | . 25 7 . Move 498 | 80 222 116 80 Hop . | . . . . Pick Up 34 | 9 17 4 4 Fast Attach 1 | . 1 . . Attach 29 | 6 5 8 10 Detach 4 | . 3 1 . Swap 4 | 1 3 . . Drop 6 | 2 4 . . Fire 55 | . 23 15 17 Melee 6 | . 6 . . Ram 1 | . . . 1 Kick 1 | . . . 1 Crush . | . . . . Escape Stasis . | . . . . Rewire . | . . . . Trap . | . . . . Miscellaneous . | . . . . Route ------- -11/Scrapyard -10/Materials -9/Materials -8/Materials History --------- Turn | Location | Event 23 | -11/Scrapyard | Discovered new exit (range 16) 107 | -11/Scrapyard | Entered Materials 305 | -10/Materials | Build established: Mutant 321 | -10/Materials | Discovered new exit (range 5) 541 | -10/Materials | Entered another Materials area 541 | -9/Materials | Evolved 2 slots: Power x1, Weapon x1 791 | -9/Materials | Discovered new exit (range 16) 819 | -9/Materials | Entered another Materials area 819 | -8/Materials | Evolved 2 slots: Propulsion x1, Utility x1 1019 | -8/Materials | Core integrity fell below 50% 1031 | -8/Materials | Core integrity fell below 20% 1043 | -8/Materials | Destroyed by G-47 Trooper with Particle Gun Last Messages --------------- Core. 01012_ Lgt. Assault Rifle destroyed. 01014_ Ion Cannon destroyed. 01015_ R-06 Scavenger collects Aluminum Leg. 01021_ Acquired 43 matter. 01022_ Aluminum Leg destroyed. 01024_ Heat Sink destroyed. 01026_ Aluminum Leg destroyed. 01026_ Lgt. Ion Engine destroyed. 01028_ Critical hit (Burn: +37). 01029_ Kicked G-47 Trooper. 01029_ Aluminum Leg destroyed. 01031_ Critical hit (Burn: +37). 01031_ Slammed into G-47 Trooper. 01033_ Y-45 Defender destroyed. 01036_ U-05 Engineer lays Concrete. 01036_ Critical hit (Burn: +37). 01037_ U-05 Engineer lays Concrete. 01042_ Critical hit (Burn: +37). 01042_ U-05 Engineer lays Concrete. Map ----- +----------------------------------------------------+ | ????????????? ????????????????????????? | | ????????????? ????????????????????????? | | ????????????? ????????????????????????? | | ????????????? ?????????????? ##???????? | | ??????????? + ???????????? ##???????? | | ???????????## # ##### ##???????? | | ???????????## ############ ##???????? | | ???????????## # ##???????? | | ???????????## # ##???????? | | ???????????## # ??? | | ???????????## ######+########## ??????? | | ???????????## ### ###### ??????? | | ???????????## ### """ ##???????????? | | ???????????## + """ ##???????????? | | ???????????## ### """ ##???????????? | | ???????????## ### ##???????????? | | ???????????## ### """ ##???????????? | | ?????????? ## ### """ ##???????????? | | ????? ## ### """ + ???????????? | | ???######+## ## ##???????????? | | ???## ############???????????? | | ???## # ## ! ############???????????? | | ???### # ### ############????????????? | | ?######## ### #### """ ##????????????? | | ?########+### #### """ ##????????????? | | ?## %+ @ # """ ##????????????? | | ?## # g # !%[ ##????????????? | | ?## # g#%!*= ##????????????? | | ?## + u gg ! ##????????????? | | ?## """ """ # g#########????????????? | | ?## """ """ # #### ????????????? | | ?## """ """ # % #### ????????????????? | | ?## # w #### ????????????????? | | ?###########; #"????????????????? | | ??########### #"????????????????? | | ??????????####### #"????????????????? | | ??????????? # # ????????????????? | | ??????????????? # ##????????????????? | | ??????????????? # ??????????????? | | ??????????????? / ??????????? | | ??????????????? # ??????? | | ??????????????? # % ! ?????? | | ??????????????? # ??????? | | ??????????????? # """ """ ""??????? | | ???????????????## """ """ "???????? | | ???????????????#T """ ""???????????? | | ???????????????## ?? ???????????? | | ??????????????? ??? ???????????? | | ??????????????? ???? ?????????? | | ???????????????###+###????#+#?????????? | +----------------------------------------------------+ Best States ------------- Heat Dissipation 41 Energy Generation 19 Energy Capacity 310 Matter Stores 300 Matter Capacity 300 Sight Range 16 Terrain Scan Density 10 Evasion (%) 55 Offensive Hacking 10 Item Schematics ----------------- Ion Cannon | -9/Materials | Scanalyzed Robot Schematics ------------------ None Fabricated ------------ Nothing Alien Tech Used ----------------- None Achievements -------------- It's Just You Challenges ------------ None Game ------ Seed RefineryDeuteriumComputer Manual? 0 Play Time 00:25:45 Cumulative 4.3 hours Start 2024.04.10 @ 23:30:37 End 2024.04.10 @ 23:57:42 Sessions 1 Manual Loads 0 Difficulty Rogue Special Mode None Game No. 8 Rogue 8 Adventurer 0 Explorer 0 Win Type - Total 0 Types 0/0/0/0/0/0/0/0/0 Lore% 12 Gallery% 10 Achievement% 10 Wizard Run 0 Options --------- Layout 1 ASCII 0 Keyboard 1 Movement Numpad Keybinds 0 Fullscreen 1 Font 24/Smallcaps Map View 50x35 Zoom Use 0% Tactical HUD 1 Map Filters NONE Filters NONE Steam 1 RUN: bbd3aeac-957c-4853-84e0-b3326b4a3ecd